Cogmind - Beta 16 --- EXPLORER MODE // 2025.11.21 @ 09:07:55 Player: K.K.Y. Result: Destroyed by Y-45 Defender with Heavy Assault Rifle Performance ------------- Evolutions (0) 0 Regions Visited (3) 600 Robots Destroyed (45) 225 Value Destroyed (985) 985 Prototype IDs (1) 20 Alien Tech Used (0) 0 Bonus (44) 44 TOTAL SCORE: 1874 Bonus ------- Follower Combat Kills 44 Cogmind --------- Core Integrity 0/250 Matter 77/300 Energy 100/100 System Corruption 0% Temperature Cool (27) Movement Walking (400) Ox4 Location -10/Subcaves Parts ------- > --- POWER (1) -------- (None) > --- PROPULSION (2) --- Aluminum Leg > --- UTILITY (3) ------ High-capacity Storage Unit Structural Scanner Terrain Scan Processor > --- WEAPON (2) ------- Subdweller Laser Battle Rifle > --- INVENTORY (20) --- Arachnoskeleton Seismic Detector Makeshift System Restoration Module Battle Rifle Battle Rifle Peak State ------------ > --- POWER ------------ Light Nuclear Core > --- PROPULSION ------- Aluminum Leg Aluminum Leg > --- UTILITY ---------- Experimental Sensor Array Improved Terrain Scanner Terrain Scan Processor > --- WEAPON ----------- Light Cannon Light Cannon > --- INVENTORY -------- High-capacity Storage Unit Structural Scanner Mining Laser Hammer [Rating: 21] Favorites ----------- Power Light Nuclear Core Engine Light Ion Engine Power Core Light Nuclear Core Propulsion Aluminum Leg Leg Aluminum Leg Utility Terrain Scan Processor Device Structural Scanner Storage High-capacity Storage Unit Processor Terrain Scan Processor Weapon Light Cannon Energy Gun Subdweller Laser Ballistic Gun Battle Rifle Ballistic Cannon Light Cannon Special Weapon Mining Laser Impact Weapon Hammer Build | -11 -10 -10 -10 ------- Run | Yrd Mat Min Sub Slots Evolved 1 | . 1 . . Power . | . . . . Propulsion . | . . . . Utility 1 | . 1 . . Weapon . | . . . . Parts Attached 27 | 1 10 7 9 Power 4 | . 2 1 1 Engine 1 | . 1 . . Core 3 | . 1 1 1 Reactor . | . . . . Propulsion 5 | . 2 1 2 Treads . | . . . . Leg 5 | . 2 1 2 Wheel . | . . . . Hover . | . . . . Flight . | . . . . Utility 9 | . 4 5 . Device 7 | . 3 4 . Storage 1 | . 1 . . Processor 1 | . . 1 . Hackware . | . . . . Protection . | . . . . Artifact . | . . . . Weapon 9 | 1 2 . 6 Energy Gun 1 | . . . 1 Energy Cannon . | . . . . Ballistic Gun 4 | 1 . . 3 Ballistic Cannon 2 | . 2 . . Launcher . | . . . . Special Weapon 1 | . . . 1 Impact Weapon 1 | . . . 1 Slashing Weapon . | . . . . Piercing Weapon . | . . . . Special Melee Weapon . | . . . . Unidentified Prototypes 1 | . . 1 . Parts Lost 9 | . . . 9 Power 2 | . . . 2 Propulsion 2 | . . . 2 Utility 2 | . . . 2 Weapon 3 | . . . 3 Highest Loss Streak 5 | . . . 5 To Critical Strikes . | . . . . Average Backups 4 | 2 2 4 4 Power . | . . . . Propulsion . | 1 . . . Utility 2 | . 1 2 2 Weapon 1 | . . 1 1 Tool/Special . | . . . . Unused Backups 6 | . 2 1 3 Power 1 | . 1 . . Propulsion 2 | . . 1 1 Utility 3 | . 1 . 2 Weapon . | . . . . Tool/Special . | . . . . Average Slot Usage (%) 88 | . 86 100 85 Core 8 | . 10 12 6 Leg 20 | . 23 25 18 Device 20 | . 27 32 15 Storage 4 | . . . 6 Processor 9 | . . 4 12 Energy Gun 3 | . . . 4 Ballistic Gun 10 | . . . 14 Ballistic Cannon 10 | . 23 25 3 Peak Build Rating 21 | 1 10 21 21 Average Rating 13 | . 8 16 14 On Entrance 8 | . 1 10 21 Avg Prop Armor Cover (%) . | . . . . Naked Turns 1 | . 1 . . Heaviest Build 50 | 2 14 14 50 Greatest Support 20 | 3 20 20 20 Greatest Overweight (x) 4 | . . . 4 Average Overweight (x) . | . . . 1 Largest Inventory Capacity 20 | 5 20 5 20 Average Capacity 10 | 5 5 5 12 Most Carried 7 | 5 5 5 7 Average Carried 5 | 3 1 4 5 Final Capacity 20 | 5 5 5 20 Final Carried 7 | 5 2 5 7 Class Distribution -------------------- 57% | Hacker-Mutant 21% | Hacker-Skirmisher 11% | Scavenger-Mutant 10% | Scavenger-Skirmisher Dominant Class ---------------- Hacker-Mutant | -10/Materials Hacker-Skirmisher | -10/Mines Hacker-Mutant | -10/Subcaves Resources | -11 -10 -10 -10 ----------- Run | Yrd Mat Min Sub Matter Collected 1192 | 210 261 312 409 Remotely 66 | . 18 48 . Salvage Created 1022 | . 256 546 220 Parts 88 | . 29 44 15 Haulers Intercepted . | . . . . Recyclers Shooed . | . . . . Parts Field Recycled . | . . . . Retrieved Matter . | . . . . Parts Self-Destructed . | . . . . Prevented . | . . . . Parts Restored . | . . . . Kills | -11 -10 -10 -10 ------- Run | Yrd Mat Min Sub Combat Hostiles Destroyed 26 | . 9 9 8 Melee 2 | . . . 2 Guns 5 | . 1 . 4 Cannons 17 | . 8 7 2 AOE 2 | . . 2 . Classes Destroyed 9 | . 4 3 2 Worker 3 | . 1 2 . Builder 5 | . . 5 . Tunneler 3 | . . 3 . Recycler 2 | . . 2 . Turret 2 | . . . 2 Watcher 3 | . 3 . . Swarmer 8 | . 4 3 1 Grunt 12 | . 5 6 1 Subdweller 7 | . . . 7 Best Kill Streak 7 | . 7 2 3 Combat Bots Only 4 | . 4 2 2 Max Kills in Single Turn 2 | . 2 2 1 Gunslinging . | . . . . Exploded 2 | . . 2 . Melee 1 | . . . 1 Uniques/NPCs Destroyed . | . . . . Combat | -11 -10 -10 -10 -------- Run | Yrd Mat Min Sub Hostile Shots Fired 142 | . 13 14 115 Missed 52 | . 5 6 41 Hits 90 | . 8 8 74 Projectile 90 | . 8 8 74 AOE 1 | . . . 1 Critical Strikes 4 | . . 1 3 Damage Taken 1099 | . 45 68 986 Core 257 | . 15 . 242 Absorbed by Shields . | . . . . Ignored by Resistances 638 | . 32 42 564 Core Remaining (%) 100 | 100 . . . Volleys Fired 167 | . 21 29 117 Largest 2 | . 2 2 2 Hottest 125 | . 60 60 125 Shots Fired 300 | . 39 58 203 Gun 161 | . 3 . 158 Cannon 133 | . 36 58 39 Launcher . | . . . . Special 6 | . . . 6 Kinetic 273 | . 39 58 176 Thermal 27 | . . . 27 Explosive . | . . . . Electromagnetic . | . . . . Robot Hit Streak 38 | . 10 16 38 Robot Miss Streak 2 | . 2 2 2 Penetration Max . | . . . . Secondary Targets . | . . . . Shots Hit Robots 147 | . 25 37 85 Core Hits 55 | . 14 23 18 Critical Kills 1 | . . . 1 Critical Parts Destroyed 1 | . . . 1 Critical Strikes 7 | . 3 1 3 Blast 5 | . 3 1 1 Smash 2 | . . . 2 Melee Attacks 6 | . . . 6 Impact 6 | . . . 6 Slashing . | . . . . Piercing . | . . . . Sneak Attacks . | . . . . Combat Hostiles . | . . . . Follow-up Attacks . | . . . . Damage Inflicted 2479 | . 426 750 1303 Guns 557 | . 10 . 547 Cannons 1634 | . 414 658 562 Explosions 92 | . . 92 . Melee 122 | . . . 122 Ramming 2 | . 2 . . Kinetic 2191 | . 424 658 1109 Thermal 164 | . . 92 72 Explosive . | . . . . Electromagnetic . | . . . . Impact 122 | . . . 122 Slashing . | . . . . Piercing . | . . . . Highest Corruption . | . . . . Average Corruption . | . . . . Corruption Purged . | . . . . Corruption Blocked . | . . . . Overload Shots . | . . . . Overflow Damage 37 | . 7 . 30 Projectiles 15 | . 7 . 8 Explosions . | . . . . Melee 22 | . . . 22 Knockbacks 29 | . 6 14 9 Impact 1 | . . . 1 Kinetic 26 | . 6 12 8 Secondary 2 | . . 2 . Self-Inflicted Damage . | . . . . Shots . | . . . . Rammed . | . . . . Targets Rammed 2 | . 1 1 . Kicked 2 | . 1 1 . Crushed . | . . . . Highest Temperature 166 | . 40 47 166 Average Temperature 17 | . 20 10 61 Received Heat Transfer 803 | . 30 72 701 Siege Activations . | . . . . Martial Activations . | . . . . Shielding Activations . | . . . . Robots Disrupted . | . . . . Combat Hostiles . | . . . . Robots Corrupted . | . . . . Combat Hostiles . | . . . . Parts Fried . | . . . . Impact Corruptions 1 | . . . 1 Robots Melted . | . . . . Combat Hostiles . | . . . . Parts Melted 1 | . . 1 . Heat Transferred 250 | . . 100 150 Parts Sabotaged . | . . . . Parts Stolen . | . . . . Parts Stripped . | . . . . Power Chain Reactions . | . . . . Alert | -11 -10 -10 -10 ------- Run | Yrd Mat Min Sub Maximum Alert Level . | . . . . Low Security (%) 100 | 100 100 100 . Level 1 . | . . . . Level 2 . | . . . . Level 3 . | . . . . Level 4 . | . . . . Level 5 . | . . . . High Security . | . . . . Max Security . | . . . . Peak Influence 125 | . 125 65 . Initial . | . . . . Average 10 | . 22 5 . Influence Increases 719 | . 259 335 125 Destroy 0b10 Robot/C 460 | . 180 200 80 Destroy 0b10 Robot/NC 80 | . 20 60 . Destroy Leader 86 | . 36 50 . Allied During Kill 8 | . . 8 . Successful Hack 22 | . 22 . . Disable Machine 12 | . . 12 . Destroy Structure 6 | . 1 5 . Lose Combat Pursuer 45 | . . . 45 Influence Decreases 719 | . 259 328 132 Entered New Map 5 | . . . 5 Time Decay 699 | . 259 328 112 Lost Ally 15 | . . . 15 Squads Dispatched . | . . . . Investigation . | . . . . Extermination . | . . . . Reinforcement . | . . . . Assault . | . . . . Garrison . | . . . . Intercept . | . . . . Searches Triggered . | . . . . Construction Impeded . | . . . . Haulers Reinforced . | . . . . Active Scanning Responses . | . . . . Cargo Convoy Interrupts . | . . . . Stealth | -11 -10 -10 -10 --------- Run | Yrd Mat Min Sub Distress Signals 4 | . 4 . . Communications Jammed . | . . . . Distress Signals . | . . . . Times Spotted 37 | . 12 10 15 Peak Tracking Total 4 | . 4 2 4 Tactical Retreats 2 | . . . 2 Traps | -11 -10 -10 -10 ------- Run | Yrd Mat Min Sub Traps Triggered 2 | . 1 . 1 Indirectly . | . . . . Trap Hack Attempts . | . . . . Triggered . | . . . . Disarmed . | . . . . Reprogrammed 1 | . 1 . . Reused . | . . . . Traps Extracted . | . . . . Installed . | . . . . Triggered . | . . . . Machines | -11 -10 -10 -10 ---------- Run | Yrd Mat Min Sub Machines Disabled 5 | . . 3 2 Max in Single Turn 2 | . . 2 1 Machines Repaired . | . . . . Machines Dismantled . | . . . . Machines Sabotaged . | . . . . Overloaded Fab Kills . | . . . . Hacking | -11 -10 -10 -10 --------- Run | Yrd Mat Min Sub Machines Accessed 10 | . 9 . 1 Terminals 8 | . 8 . . Fabricators . | . . . . Repair Stations . | . . . . Recycling Units 1 | . 1 . . Scanalyzers . | . . . . Garrison Access . | . . . . Total Hacks 28 | . 24 . 4 Successful 20 | . 16 . 4 Failed 8 | . 8 . . Catastrophic . | . . . . Database Lockouts . | . . . . Manual . | . . . . Terminals 23 | . 23 . . Fabricators . | . . . . Repair Stations . | . . . . Recycling Units 1 | . 1 . . Scanalyzers . | . . . . Garrison Access . | . . . . Terminal Hacks 19 | . 15 . 4 Record 4 | . . . 4 Robot Analysis 3 | . 3 . . Emergency Access Points 2 | . 2 . . Locate Traps 1 | . 1 . . Reprogram Traps 1 | . 1 . . Maintenance Status 1 | . 1 . . Surveillance Status 1 | . 1 . . Hauler Manifests 1 | . 1 . . Registered Components 1 | . 1 . . Zone Layout 4 | . 4 . . Fabricator Hacks . | . . . . Repair Station Hacks . | . . . . Recycling Unit Hacks 1 | . 1 . . Report Inventory 1 | . 1 . . Scanalyzer . | . . . . Garrison Access Hacks . | . . . . Unauthorized Hacks . | . . . . Terminals . | . . . . Fabricators . | . . . . Repair Stations . | . . . . Recycling Units . | . . . . Scanalyzers . | . . . . Garrison Access . | . . . . Data Cores Recovered . | . . . . Used . | . . . . Hacking Detections 5 | . 5 . . Full Trace Events 1 | . 1 . . Feedback Events . | . . . . Feedback Blocked . | . . . . Robot Schematics Acquired . | . . . . Robots Built . | . . . . Authchips . | . . . . Time . | . . . . Total Robot Build Rating . | . . . . Part Schematics Acquired . | . . . . Parts Built . | . . . . Authchips . | . . . . Time . | . . . . Total Part Build Rating . | . . . . Part Studies Acquired . | . . . . Parts Repaired . | . . . . Time . | . . . . Parts Recycled . | . . . . Recycled Matter . | . . . . Retrieved Matter . | . . . . Retrieved Components . | . . . . Parts Scanalyzed . | . . . . Part Schematics Acquired . | . . . . Parts Damaged . | . . . . Bothacking | -11 -10 -10 -10 ------------ Run | Yrd Mat Min Sub Used RIF Installer . | . . . . Robots Hacked . | . . . . Non-combat . | . . . . Combat . | . . . . Robot Hacks Applied . | . . . . Relay Couplers Released . | . . . . Fabnet Peak Effective % . | . . . . Robots Rewired . | . . . . Allies Hacked . | . . . . Hacks Repelled . | . . . . Allies | -11 -10 -10 -10 -------- Run | Yrd Mat Min Sub Total Allies 3 | . . 3 . Largest Group 3 | . . 3 3 Highest-Rated Group 40 | . . 40 40 Highest-Rated Ally 16 | . . 16 16 Total Orders . | . . . . Ally Attacks 16 | . . 5 11 Total Damage 186 | . . 76 110 Kills 3 | . . 1 2 Allies Corrupted . | . . . . Allies Melted . | . . . . Intel | -11 -10 -10 -10 ------- Run | Yrd Mat Min Sub Active Infowar (turns) 8038 | . 744 1790 5504 Sensors 3073 | . 744 1537 792 Terrain 4140 | . . 1559 2581 Structural 4281 | . . 548 3733 Seismic 1527 | . 685 842 . Robot Analysis Total 3 | . 3 . . Derelict Logs Recovered 2 | . . . 2 Drone Launches . | . . . . Drone Recoveries . | . . . . Exploration | -11 -10 -10 -10 ------------- Run | Yrd Mat Min Sub Turns Passed 8142 | 27 821 1790 5504 Spaces Moved 3874 | 42 656 1248 1928 Core 109 | 42 67 . . Treads . | . . . . Legs 3765 | . 589 1248 1928 Wheels . | . . . . Hover . | . . . . Flight . | . . . . Fastest Speed 50 | 50 50 120 120 Average Speed 167 | 50 112 120 218 Slowest Speed 400 | 50 120 120 400 Overloaded Moves . | . . . . Propulsion Burnouts . | . . . . Robots Hopped . | . . . . Potential Cave-ins . | . . . . Cave-ins Triggered . | . . . . Exploration Rate (%) 68 | 4 96 99 75 Regions Visited 3 Branch Regions 2 Pre-discovered Areas 2 | . . . 2 Known Exits Taken 3 | 1 1 1 . Unknown Exits Taken . | . . . . Scrap Searched 1 | . . . 1 Spaces Dug . | . . . . Terrain Destroyed 5 | . . 5 . Melee . | . . . . Projectile . | . . . . AOE 5 | . . 5 . Terrain Rammed . | . . . . Walls Destroyed . | . . . . Machines Disabled . | . . . . Actions | -11 -10 -10 -10 --------- Run | Yrd Mat Min Sub Total 5240 | 47 698 1486 3009 Wait 1115 | . . 177 938 Move 3871 | 41 655 1247 1928 Hop . | . . . . Pick Up 27 | 5 4 12 6 Fast Attach 9 | 1 5 . 3 Attach 16 | . 6 5 5 Detach 5 | . 2 3 . Swap 6 | . . 3 3 Drop 16 | . 4 9 3 Fire 167 | . 21 29 117 Melee 6 | . . . 6 Ram . | . . . . Kick 2 | . 1 1 . Crush . | . . . . Escape Stasis . | . . . . Rewire . | . . . . Trap . | . . . . Miscellaneous . | . . . . Route ------- -11/Scrapyard -10/Materials (discovered 4 exits: *Mat x3 / *Min) -10/Mines (discovered 3 exits: *Mat x2 / *Sub) -10/Subcaves (discovered 4 exits: *Mat x2 / *Rec / [*Scr]) History --------- Turn | Location | Event 2 | -11/Scrapyard | Met Revision 17 6 | -11/Scrapyard | Identified exit to Materials 6 | -11/Scrapyard | Discovered exit to Materials (range 15) 28 | -11/Scrapyard | Entered Materials 28 | -10/Materials | Evolved 1 slot: Utility x1 201 | -10/Materials | Identified exit to Materials 201 | -10/Materials | Discovered exit to Materials (range 13) 318 | -10/Materials | Build established: Hacker-Mutant 394 | -10/Materials | Identified exit to Mines 394 | -10/Materials | Discovered exit to Mines (range 11) 634 | -10/Materials | Discovered exit to Materials (range 13) 728 | -10/Materials | Discovered exit to Materials (range 9) 849 | -10/Materials | Entered Mines 916 | -10/Mines | Found a damaged Exp. Sensor Array with a note attached 919 | -10/Mines | Found Prototype Device 967 | -10/Mines | Discovered exit to Materials (range 8) 1005 | -10/Mines | Assisted by bots powering up and referring to "LRC-V3" 1371 | -10/Mines | Discovered exit to Materials (range 4) 1626 | -10/Mines | Identified exit to Subcaves 1626 | -10/Mines | Discovered exit to Subcaves (range 6) 1691 | -10/Mines | Identified Exp. Sensor Array 2008 | -10/Mines | Build established: Hacker-Skirmisher 2639 | -10/Mines | Entered Subcaves 2639 | -10/Subcaves | Accompanied by 3 allies 2640 | -10/Subcaves | Approached by a straggling Scientist 2864 | -10/Subcaves | Disturbed a concealed Subdweller 3035 | -10/Subcaves | Identified exit to Recycling 3035 | -10/Subcaves | Discovered exit to Recycling (range 15) 3069 | -10/Subcaves | Learned Materials emergency access door positions 3390 | -10/Subcaves | Identified exit to Materials 3390 | -10/Subcaves | Discovered exit to Materials (range 13) 3439 | -10/Subcaves | Core integrity fell below 50% 3469 | -10/Subcaves | Lost 5 parts (1p1n1u2w) 3710 | -10/Subcaves | Build established: Hacker-Mutant 3830 | -10/Subcaves | Learned location of Zion (-6) 3830 | -10/Subcaves | Met a Zionite searching for "candidates" 3833 | -10/Subcaves | Discovered exit to Materials (range 15) 4007 | -10/Subcaves | Shifting Twisted Machinery released Sub. Shrapnel Launcher 4102 | -10/Subcaves | Build established: Scavenger-Mutant 4111 | -10/Subcaves | Shifting Twisted Machinery released Mak. Kinetic Plating 4206 | -10/Subcaves | Learned location of Storage (-7) 4716 | -10/Subcaves | Build established: Scavenger-Skirmisher 5209 | -10/Subcaves | A Subdweller sparked back to life 5209 | -10/Subcaves | A Subdweller sparked back to life 5209 | -10/Subcaves | A Subdweller sparked back to life 5239 | -10/Subcaves | Found Prototype Leg 5390 | -10/Subcaves | Visited Clippyterm 5504 | -10/Subcaves | Core integrity fell below 20% 5814 | -10/Subcaves | Build established: Hacker-Mutant 6790 | -10/Subcaves | A swath of the cavern ceiling suddenly collapsed 8143 | -10/Subcaves | Destroyed by Y-45 Defender with Heavy Assault Rifle Last Messages --------------- attempt to resurrect an ancient AI. I give up. There must be something fundamentally wrong with the algorithm, because no matter how much data I collect to feed it, half the time it still manages to suggest unhelpful sample queries and responses. --DD-NU8 05493_ Critical hit (Meltdown: +170). 05495_ Aluminum Leg destroyed. 05507_ Mining Laser destroyed. 05518_ 21-B7C(R) destroyed. 05540_ Acquired 36 matter. 05633_ Lgt. Nuclear Core destroyed. 05646_ DY-OB9(R) destroyed. 05649_ Acquired 38 matter. 05661_ Subatomizers dissect the Sub. Power Source. 05924_ Acquired Sub. Laser. A swath of the cavern ceiling suddenly collapses. 08143_ Critical hit (Burn: +37). Map ----- +----------------------------------------------------+ | "################?###??#??#?###????######### | | ##??####?###?###?###?####?#?#????#?##?###### | | ##?####??######?###?#???#?#?#????#?##??##### | | "##########?##?##?##?####?###??????#??####### | | "###?#??#?#?####??#??#?##????????##?#??????## | | """#######??#??##?####?#???#???????#?#??????#?? | | #>#######??#####?#?###?##?###??????????#??#???##?? | | ###########?#?????##?#?#?##??????????????###???#?? | | #?#####?#??###??####??#??#???#????#??????#?????#?? | | ########?#????#??#???#??#?????#????????????#?#??## | | ####?####?####???#????#?#??????????????????#?????? | | #######?#?####?###???#????????????????????#??????? | | #####??###????#???###????#???????????????#???????? | | #######?#?##?????#??????#??#?????????????????????? | | ######???########??#???##??????#?????????????????? | | ##########################???????????????????????? | | #########?## ############?????#????????????????? | | #### ###### ## ##??????#??? ????????????? | | ## ##### ###?# ? ??#???????????????? | | # ### ###????????????????????????? | | ## ###?????????????????????????? | | #######[ ##??#?????? ????????????????? | | ####### ########????????????????????? | | ##### ### #########???????????????????? | | # ###### ## # ####??????????????????? | | ## ##### @ ##???????????????????? | | ## ## ## ?????????????? | | ### ## ### #### # ?????????? | | ### ### ## ### ##? Y?????????? | | #### #### ##?? ##??? ?????????? | | ######### ###?? ##???? ?????????? | | ######### ### ??? ###?????####?????????? | | ##### #### #"" ???? ###?????####?????????? | | ### ####### ????? #???????????????????? | | ## ########## "?????? ##???????????????????? | | ## ##??#### ### ??????###???????????????????? | | ## ####### ##???????###???????????????????? | | ## ###### ###?????????????????????????????? | | ## ### ###?????????????????????????????? | | # ## ##??????????????????????????????? | | ## ##??????????????????????????????? | | ###??????????????????????????????? | | ## #####????????????????????????????? | | ### #####????????????????????????????? | | ### """##????????????????????????????? | | ### #### ""##????????????????????????????? | | ######## #########??????????????????????? | | ######## #########??????????????????????? | | ####?### ##??????????????????????? | | # ###??## ##??????????????????????? | +----------------------------------------------------+ Best States ------------- Heat Dissipation 25 Energy Generation 14 Energy Capacity 160 Matter Stores 300 Matter Capacity 300 Sight Range 16 Robot Scan Range 20 Terrain Scan Range 16 Terrain Scan Density 85 Resistance: KI 35 Resistance: TH 35 Resistance: EX 35 Resistance: EM 35 Resistance: I 35 Resistance: S 35 Resistance: P 35 Evasion (%) 55 Offensive Hacking 20 Item Schematics ----------------- None Robot Schematics ------------------ None Fabricated ------------ Nothing Repaired ---------- Nothing Studied --------- None Alien Tech Used ----------------- None Achievements -------------- None Challenges ------------ None Game ------ Seed SuperchargedTowerTether Manual? 0 Play Time 00:24:26 Cumulative 126.3 hours Start 2025.11.21 @ 08:43:35 End 2025.11.21 @ 09:07:55 Sessions 1 Manual Loads 0 Difficulty Explorer Special Mode None Game No. 146 Rogue 0 Adventurer 0 Explorer 146 Win Type - Total 0 Types 0/0/0/0/0/0/0/0/0/0 Lore% 66 Gallery% 65 Achievement% 50 Wizard Run 0 Options --------- Layout 1 ASCII 0 Keyboard 0 Movement Mouse Keybinds 0 Fullscreen 1 Font 24/Smallcaps Map View 50x35 Zoom Use 0% Tactical HUD 1 Map Filters NONE Filters NONE Steam 1 RUN: add869cc-f7e1-4f6d-993a-661bfc422e79